Cogmind - Beta 13 @@@ ROGUE MODE // 2024.04.26 @ 16:08:00 Player: Faunarr Result: Destroyed by G-34 Mercenary with Small Laser Performance ------------- Evolutions (1) 500 Regions Visited (3) 600 Robots Destroyed (27) 135 Value Destroyed (500) 500 Prototype IDs (0) 0 Alien Tech Used (0) 0 Bonus (0) 0 TOTAL SCORE: 1735 Bonus ------- None Cogmind --------- Core Integrity 0/400 Matter 187/300 Energy 264/265 System Corruption 4% Temperature Cool (6) Movement Walking (190) Ox1 Location -9/Materials Parts ------- > --- POWER (1) -------- Improved Ion Engine > --- PROPULSION (2) --- Carbon-fiber Leg Carbon-fiber Leg > --- UTILITY (4) ------ Large Storage Unit Trap Scanner Advanced Visual Processing Unit Seismic Detector > --- WEAPON (2) ------- Heavy Assault Rifle > --- INVENTORY (15) --- Small Storage Unit Medium Storage Unit Seismic Detector Peak State ------------ > --- POWER ------------ Improved Ion Engine > --- PROPULSION ------- Carbon-fiber Leg Carbon-fiber Leg > --- UTILITY ---------- Large Storage Unit Trap Scanner Advanced Visual Processing Unit Seismic Detector > --- WEAPON ----------- Heavy Assault Rifle Heavy Assault Rifle > --- INVENTORY -------- Small Storage Unit Medium Storage Unit Seismic Detector [Rating: 20] Favorites ----------- Power Ion Engine Engine Ion Engine Propulsion Light Treads Treads Light Treads Leg Carbon-fiber Leg Wheel Wheel Utility Seismic Detector Device Seismic Detector Storage Large Storage Unit Processor Advanced Visual Processing Unit Protection Light Armor Plating Weapon Heavy Assault Rifle Energy Gun Small Laser Ballistic Gun Heavy Assault Rifle Build | -11 -10 -10 -9 ------- Run | Yrd Mat Min Mat Slots Evolved 2 | . . . 2 Power . | . . . . Propulsion . | . . . . Utility 2 | . . . 2 Weapon . | . . . . Parts Attached 25 | 7 1 1 16 Power 4 | . 1 . 3 Engine 4 | . 1 . 3 Core . | . . . . Reactor . | . . . . Propulsion 5 | 2 . . 3 Treads 2 | 2 . . . Leg 2 | . . . 2 Wheel 1 | . . . 1 Hover . | . . . . Flight . | . . . . Utility 9 | 2 . . 7 Device 5 | 1 . . 4 Storage 2 | 1 . . 1 Processor 1 | . . . 1 Hackware . | . . . . Protection 1 | . . . 1 Artifact . | . . . . Weapon 7 | 3 . 1 3 Energy Gun 3 | 2 . 1 . Energy Cannon . | . . . . Ballistic Gun 4 | 1 . . 3 Ballistic Cannon . | . . . . Launcher . | . . . . Special Weapon . | . . . . Impact Weapon . | . . . . Slashing Weapon . | . . . . Piercing Weapon . | . . . . Special Melee Weapon . | . . . . Unidentified Prototypes . | . . . . Corrupted Parts 1 | . . . 1 System Corruption 4 | . . . 4 Parts Lost 13 | . 1 . 12 Power 3 | . . . 3 Propulsion 3 | . . . 3 Utility 2 | . . . 2 Weapon 5 | . 1 . 4 Highest Loss Streak 9 | . 1 . 9 To Critical Strikes . | . . . . Average Slot Usage (%) 77 | . 93 100 68 Engine 10 | . 7 14 9 Treads 13 | . 28 28 7 Leg 3 | . . . 4 Device 11 | . 14 14 10 Storage 11 | . 14 14 11 Processor 1 | . . . 1 Protection 2 | . . . 3 Energy Gun 12 | . 14 28 7 Ballistic Gun 9 | . 14 . 11 Naked Turns . | . . . . Heaviest Build 36 | 9 14 14 36 Greatest Support 40 | 40 40 40 40 Greatest Overweight (x) 10 | . . . 10 Average Overweight (x) 1 | . . . 2 Largest Inventory Capacity 15 | 8 8 8 15 Average Capacity 11 | 7 8 8 13 Most Carried 6 | 5 5 6 6 Average Carried 4 | 3 4 5 4 Final Capacity 15 | 8 8 8 15 Final Carried 6 | 5 5 6 3 Class Distribution -------------------- 93% | Mutant 6% | Scavenger-Mutant Dominant Class ---------------- Mutant | -10/Materials Mutant | -10/Mines Mutant | -9/Materials Resources | -11 -10 -10 -9 ----------- Run | Yrd Mat Min Mat Matter Collected 509 | 288 52 17 152 Remotely . | . . . . Salvage Created 724 | 144 83 86 411 Parts 71 | 16 5 17 33 Haulers Intercepted . | . . . . Recyclers Shooed . | . . . . Parts Field Recycled . | . . . . Retrieved Matter . | . . . . Parts Self-Destructed . | . . . . Prevented . | . . . . Kills | -11 -10 -10 -9 ------- Run | Yrd Mat Min Mat Combat Hostiles Destroyed 21 | . 2 6 13 Guns 20 | . 2 6 12 AOE 1 | . . . 1 Classes Destroyed 5 | 2 1 1 1 Tunneler 5 | 4 . 1 . Recycler 1 | 1 . . . Swarmer 13 | . . 6 7 Grunt 4 | . 2 . 2 Sentry 4 | . . . 4 Best Kill Streak 6 | 5 1 3 6 Combat Bots Only 6 | . 1 3 6 Max Kills in Single Turn 2 | 1 1 2 1 Gunslinging 1 | . . 1 . Exploded 1 | . . . 1 Melee . | . . . . Uniques/NPCs Destroyed . | . . . . Combat | -11 -10 -10 -9 -------- Run | Yrd Mat Min Mat Hostile Shots Fired 209 | . 47 16 146 Missed 62 | . 16 4 42 Damage Taken 1621 | . 388 102 1131 Core 470 | . 58 9 403 Absorbed by Shields . | . . . . Core Remaining (%) 86 | 100 . 73 . Volleys Fired 109 | 6 18 7 78 Largest 2 | 2 2 2 2 Hottest 80 | 60 60 80 80 Shots Fired 162 | 12 36 14 100 Gun 162 | 12 36 14 100 Cannon . | . . . . Launcher . | . . . . Special . | . . . . Kinetic 86 | 6 18 . 62 Thermal 47 | 4 18 7 18 Explosive . | . . . . Electromagnetic 29 | 2 . 7 20 Robot Hit Streak 16 | 5 14 7 16 Robot Miss Streak 4 | 1 2 1 4 Penetration Max . | . . . . Secondary Targets 2 | . . 2 . Max Gunslinging Chain 1 | . . 1 . Shots Hit Robots 112 | 8 27 10 67 Core Hits 38 | 5 6 6 21 Critical Kills 1 | 1 . . . Critical Parts Destroyed . | . . . . Critical Strikes 3 | 1 . . 2 Destroy 1 | 1 . . . Corrupt 2 | . . . 2 Melee Attacks . | . . . . Impact . | . . . . Slashing . | . . . . Piercing . | . . . . Sneak Attacks . | . . . . Combat Hostiles . | . . . . Follow-up Attacks . | . . . . Damage Inflicted 1388 | 112 311 116 849 Guns 1287 | 112 311 111 753 Cannons . | . . . . Explosions 96 | . . . 96 Melee . | . . . . Ramming 5 | . . 5 . Kinetic 628 | 40 159 . 429 Thermal 477 | 45 152 66 214 Explosive . | . . . . Electromagnetic 278 | 27 . 45 206 Impact . | . . . . Slashing . | . . . . Piercing . | . . . . Highest Corruption 4 | . . . 4 Average Corruption 4 | . . . 4 Corruption Purged . | . . . . Corruption Blocked . | . . . . Effects 13 | . . . 13 Message Errors 1 | . . . 1 Matter Fused 4 | . . . 4 Heat Flow Errors 3 | . . . 3 Energy Discharges 2 | . . . 2 Data Loss (minor) 2 | . . . 2 Misfires 1 | . . . 1 Overload Shots . | . . . . Overflow Damage . | . . . . Projectiles . | . . . . Explosions . | . . . . Melee . | . . . . Knockbacks . | . . . . Impact . | . . . . Kinetic . | . . . . Secondary . | . . . . Self-Inflicted Damage . | . . . . Shots . | . . . . Rammed 1 | . . 1 . Targets Rammed 2 | . . 2 . Kicked . | . . . . Crushed 1 | . . 1 . Highest Temperature 275 | . 30 72 275 Average Temperature 50 | . 12 34 64 Received Heat Transfer 531 | . 240 . 291 Siege Activations . | . . . . Robots Corrupted . | . . . . Combat Hostiles . | . . . . Parts Fried . | . . . . Impact Corruptions . | . . . . Robots Melted . | . . . . Combat Hostiles . | . . . . Parts Melted 1 | . 1 . . Heat Transferred 1025 | 100 350 150 425 Parts Sabotaged . | . . . . Parts Stolen . | . . . . Parts Stripped . | . . . . Power Chain Reactions 2 | . . . 2 Alert | -11 -10 -10 -9 ------- Run | Yrd Mat Min Mat Peak Influence 347 | 25 96 178 347 Initial 68 | . 16 33 68 Average 120 | 10 67 164 127 Maximum Alert Level 1 | . . . 1 Low Security (%) 89 | 100 100 100 84 Level 1 10 | . . . 15 Level 2 . | . . . . Level 3 . | . . . . Level 4 . | . . . . Level 5 . | . . . . High Security . | . . . . Max Security . | . . . . Squads Dispatched 3 | . 2 . 1 Investigation 2 | . 2 . . Extermination . | . . . . Reinforcement 1 | . . . 1 Assault . | . . . . Garrison . | . . . . Intercept . | . . . . Searches Triggered . | . . . . Construction Impeded . | . . . . Haulers Reinforced . | . . . . Active Scanning Responses . | . . . . Cargo Convoy Interrupts . | . . . . Stealth | -11 -10 -10 -9 --------- Run | Yrd Mat Min Mat Distress Signals 6 | . 1 . 5 Communications Jammed . | . . . . Distress Signals . | . . . . Times Spotted 46 | . 8 6 32 Peak Tracking Total 9 | . 4 3 9 Tactical Retreats 3 | . . . 3 Traps | -11 -10 -10 -9 ------- Run | Yrd Mat Min Mat Traps Triggered 1 | . 1 . . Indirectly . | . . . . Trap Hack Attempts . | . . . . Triggered . | . . . . Disarmed . | . . . . Reprogrammed . | . . . . Reused . | . . . . Traps Extracted . | . . . . Installed . | . . . . Triggered . | . . . . Machines | -11 -10 -10 -9 ---------- Run | Yrd Mat Min Mat Machines Disabled . | . . . . Max in Single Turn . | . . . . Machines Repaired . | . . . . Machines Dismantled . | . . . . Machines Sabotaged . | . . . . Overloaded Fab Kills . | . . . . Hacking | -11 -10 -10 -9 --------- Run | Yrd Mat Min Mat Machines Accessed 5 | . 1 . 4 Terminals 4 | . 1 . 3 Fabricators . | . . . . Repair Stations . | . . . . Recycling Units 1 | . . . 1 Scanalyzers . | . . . . Garrison Access . | . . . . Total Hacks 15 | . 2 . 13 Successful 9 | . . . 9 Failed 6 | . 2 . 4 Catastrophic 1 | . 1 . . Database Lockouts . | . . . . Manual 15 | . 2 . 13 Terminals 13 | . 2 . 11 Fabricators . | . . . . Repair Stations . | . . . . Recycling Units 2 | . . . 2 Scanalyzers . | . . . . Garrison Access . | . . . . Terminal Hacks 3 | . . . 3 Terminal Index 1 | . . . 1 Alert Level 1 | . . . 1 Unreport Threat 1 | . . . 1 Fabricator Hacks . | . . . . Repair Station Hacks . | . . . . Recycling Unit Hacks . | . . . . Scanalyzer . | . . . . Garrison Access Hacks . | . . . . Unauthorized Hacks 6 | . . . 6 Terminals 4 | . . . 4 Assimilate 1 | . . . 1 Botnet 3 | . . . 3 Fabricators . | . . . . Repair Stations . | . . . . Recycling Units 2 | . . . 2 Reject 1 | . . . 1 Mask 1 | . . . 1 Scanalyzers . | . . . . Garrison Access . | . . . . Data Cores Recovered . | . . . . Used . | . . . . Hacking Detections 5 | . 1 . 4 Full Trace Events 2 | . 1 . 1 Feedback Events . | . . . . Feedback Blocked . | . . . . Robot Schematics Acquired . | . . . . Robots Built . | . . . . Authchips . | . . . . Time . | . . . . Total Robot Build Rating . | . . . . Part Schematics Acquired . | . . . . Parts Built . | . . . . Authchips . | . . . . Time . | . . . . Total Part Build Rating . | . . . . Parts Repaired . | . . . . Time . | . . . . Parts Recycled . | . . . . Recycled Matter . | . . . . Retrieved Matter . | . . . . Retrieved Components . | . . . . Parts Scanalyzed . | . . . . Part Schematics Acquired . | . . . . Parts Damaged . | . . . . Bothacking | -11 -10 -10 -9 ------------ Run | Yrd Mat Min Mat Used RIF Installer . | . . . . Robots Hacked . | . . . . Non-combat . | . . . . Combat . | . . . . Robot Hacks Applied . | . . . . Relay Couplers Released . | . . . . Fabnet Peak Effective % . | . . . . Robots Rewired . | . . . . Allies Hacked . | . . . . Hacks Repelled . | . . . . Allies | -11 -10 -10 -9 -------- Run | Yrd Mat Min Mat Total Allies . | . . . . Largest Group . | . . . . Highest-Rated Group . | . . . . Highest-Rated Ally . | . . . . Total Orders . | . . . . Ally Attacks . | . . . . Total Damage . | . . . . Kills . | . . . . Allies Corrupted . | . . . . Allies Melted . | . . . . Intel | -11 -10 -10 -9 ------- Run | Yrd Mat Min Mat Robot Analysis Total . | . . . . Derelict Logs Recovered 1 | . . 1 . Drone Launches . | . . . . Drone Recoveries . | . . . . Exploration | -11 -10 -10 -9 ------------- Run | Yrd Mat Min Mat Turns Passed 1646 | 98 176 301 1071 Spaces Moved 631 | 49 73 172 337 Core 86 | 14 . . 72 Treads 447 | 35 73 172 167 Legs 87 | . . . 87 Wheels 11 | . . . 11 Hover . | . . . . Flight . | . . . . Fastest Speed 50 | 50 160 160 110 Average Speed 201 | 128 160 160 242 Slowest Speed 550 | 160 160 160 550 Overloaded Moves . | . . . . Propulsion Burnouts . | . . . . Robots Hopped . | . . . . Cave-ins Triggered . | . . . . Exploration Rate (%) 26 | 5 22 56 23 Regions Visited 3 Branch Regions 1 Pre-discovered Areas . | . . . . Known Exits Taken . | . . . . Unknown Exits Taken 3 | 1 1 1 . Scrap Searched 1 | . . 1 . Spaces Dug . | . . . . Terrain Destroyed 7 | . . . 7 Melee . | . . . . Projectile . | . . . . AOE 7 | . . . 7 Terrain Rammed . | . . . . Walls Destroyed . | . . . . Machines Disabled . | . . . . Actions | -11 -10 -10 -9 --------- Run | Yrd Mat Min Mat Total 844 | 71 96 183 494 Wait 65 | . 4 . 61 Move 628 | 48 72 171 337 Hop . | . . . . Pick Up 14 | 10 1 2 1 Fast Attach 9 | 1 . . 8 Attach 13 | 5 1 1 6 Detach 1 | . . . 1 Swap 3 | 1 . . 2 Drop . | . . . . Fire 109 | 6 18 7 78 Melee . | . . . . Ram . | . . . . Kick . | . . . . Crush 2 | . . 2 . Escape Stasis . | . . . . Rewire . | . . . . Trap . | . . . . Miscellaneous . | . . . . Route ------- -11/Scrapyard -10/Materials -10/Mines -9/Materials History --------- Turn | Location | Event 9 | -11/Scrapyard | Discovered new exit (range 15) 99 | -11/Scrapyard | Entered Materials 223 | -10/Materials | Discovered new exit (range 15) 275 | -10/Materials | Entered Mines 315 | -10/Mines | Build established: Mutant 386 | -10/Mines | Learned Materials non-interactive machine intel 567 | -10/Mines | Discovered new exit (range 5) 576 | -10/Mines | Entered Materials 576 | -9/Materials | Evolved 2 slots: Utility x2 577 | -9/Materials | Loaded intel: 42 non-interactive machine locations 1018 | -9/Materials | Core integrity fell below 50% 1036 | -9/Materials | Lost 9 parts (2p3n2u2w) 1078 | -9/Materials | Core integrity fell below 20% 1647 | -9/Materials | Destroyed by G-34 Mercenary with Small Laser Last Messages --------------- 01463_ Connecting with Recycling Unit... >>Trojan(Reject) Trojan loaded successfully. Testing... Ejection routine running. >>Trojan(Mask) Trojan loaded successfully. Testing... Masking routine running. 01496_ Acquired Adv. Visual Processing Unit. 01504_ System corrupted: Heat flow error (+148). 01521_ System corrupted: Energy discharge (-106). 01537_ W-16 Scout sends out distress signal. 01551_ Hvy. Assault Rifle destroyed. 01555_ K-01 Serf cleans the Material Processor. 01561_ S-10 Pest destroyed. 01574_ System corrupted: Matter fused (-7). 01586_ W-16 Scout sends out distress signal. 01619_ System corrupted: Heat flow error (+236). Map ----- +----------------------------------------------------+ | | | | | | | | | #????????????????????????????????????????????????? | | ?#???????????????????????????????????????????????? | | ??????#?#??????????"""?"""?"""???????????????????? | | ???????????#???????"""?"""?"""???????????????????? | | ???#???????????????"""?"""?"""???????????????????? | | ??#??#?????#??????? ?????????????????????????????? | | ???????#?????????????????????????????????????????? | | ???#?#############????##+###?????????????????????? | | ###### # #????# ?????????????????????? | | + "T" ] ###### #?????????????????????? | | ###### # + #?????????????????????? | | #######+############## #?????????????????????? | | #???#???###??# ####??????????????????? | | ==* #?#??????? ?# #??????????????????? | | ==| #???????""" # #??????????????????? | | ==| #?????#?"""? + #??????????????????? | | "#?##????"""??# #??????????????????? | | T#?#???? ?? ??# #??????????????????? | | "#?#??????????#?# #??????????????????? | | ##???#???????#?# #??????????????????? | | #########?????????????# #??????????????????? | | ##??#??##??????????????# @ #??????????????????? | | #############??????????#g#### #??????????????????? | | #??????????# #??# #???????????????"""? | | #??????????# #??# #??????????????""""" | | """ +??????????# ####+####???????????""""" | | """"" #??????????# # #???????????""""" | | """"" #??????????# # #????????????"""? | | """"" #?#######??# # #???????????????? | | """ #?# #### # """ #???????????????? | | ###[ # """ #???????????????? | | =%= / """ #???????????????? | | ###" "# ### # #???????????????? | | ??#"Y"# #?# ###### """ #???????????????? | | ??#"""## ##?### ###????# """ #????????""""???? | | ??###### #????# #??????# """ #????????""""???? | | ???????# #????# #??????# #????????""""???? | | ???????# #????# #??????#########???????????????? | | ???????# #????# #??????????????????????????????? | | ??????? ????# #??????????????????????????????? | | ?????? #???# #??????????????????????????????? | | ?????? T #???# #??????????????????????????????? | | ????? #???# #??????????????????????????????? | | ????] #???? ???????????????????????????????? | | ????] ## ##????+???????????????????????????????? | | ???###?# #?????????????????????????????????????? | +----------------------------------------------------+ Best States ------------- Heat Dissipation 28 Energy Generation 12 Energy Capacity 265 Matter Stores 300 Matter Capacity 300 Sight Range 20 Terrain Scan Range 16 Terrain Scan Density 10 Armor Coverage 150 Evasion (%) 40 Recoil Reduction 2 Item Schematics ----------------- None Robot Schematics ------------------ None Fabricated ------------ Nothing Alien Tech Used ----------------- None Achievements -------------- Quantum Hacking Challenges ------------ None Game ------ Seed BehemothSeismicTube Manual? 0 Play Time 00:16:43 Cumulative 16.1 hours Start 2024.04.26 @ 15:50:17 End 2024.04.26 @ 16:08:00 Sessions 1 Manual Loads 0 Difficulty Rogue Special Mode None Game No. 33 Rogue 33 Adventurer 0 Explorer 0 Win Type - Total 0 Types 0/0/0/0/0/0/0/0/0 Lore% 18 Gallery% 22 Achievement% 21 Wizard Run 0 Options --------- Layout 1 ASCII 0 Keyboard 0 Movement Vi Keybinds 0 Fullscreen 2 Font 24/Smallcaps Map View 50x35 Zoom Use 0% Tactical HUD 1 Map Filters NONE Filters NONE Steam 1 RUN: b23d5022-8270-49e2-9910-7d9b85662666